[Event "Targo Mures Open 2019"]
[Site "Targo Mures"]
[Date "2019.10.18"]
[Round "3.12"]
[White "Velcherean, Vasile-Adrian"]
[Black "Jakab, Nandor"]
[Result "1-0"]
[ECO "A45"]
[WhiteElo "1925"]
[BlackElo "1800"]
[Annotator "NA"]
[PlyCount "77"]
[EventDate "2019.03.02"]
[EventType "swiss"]
[EventCountry "ROU"]
[SourceTitle "playchess.com"]
[Source "ChessBase"]
[SourceQuality "1"]
[TimeControl "5400+30"]

1. d4 {[%emt 0:00:00]} Nf6 {[%emt 0:10:16]} 2. g3 {[%emt 0:00:39]} d5 {[%emt 0:00:32]} 3. Bg2 {[%emt 0:00:30]} g6 {[%emt 0:00:14]} 4. Nc3 {[%emt 0:01:26]} (4. c4 c6 5. Qa4 Nfd7 6. cxd5 Nb6 7. Qb3 cxd5 8. Nc3 Nc6 9. e3 e6 10. Nge2 Bg7 11. a4 O-O 12. h4 Qe7 {1-0 (57) Adly,A (2625)-Gupta,A (2619) Mansa 2017}) 4... Bg7 {[%emt 0:00:44]} 5. Bg5 {[%emt 0:01:17]} c6 {[%emt 0:04:27]} 6. Qd2 {[%emt 0:01:06] D00: 1 d4 d5: Unusual lines} Bf5 {[%emt 0:04:00]} 7. f3 {[%emt 0:04:53]} Nbd7 $146 {[%emt 0:02:36]} ({Predecessor:} 7... h6 8. Bf4 g5 9. Be3 Nbd7 10. g4 Bg6 11. h4 gxh4 {½-½ (26) Yuzhakov,O (2339)-Matveev,V (2333) Kurgan 2010}) 8. e4 {[%emt 0:01:44]} dxe4 {[%emt 0:00:23]} 9. fxe4 {[%emt 0:00:28]} Be6 {[%emt 0:00:46]} 10. Nge2 {[%emt 0:01:36]} Nb6 {[%emt 0:02:31]} 11. b3 {[%emt 0:00:30]} Bg4 {[%emt 0:07:10]} 12. a4 {[%emt 0:07:47]} a5 {[%emt 0:01:02]} 13. O-O {[%emt 0:00:28]} O-O {[%emt 0:00:45]} 14. h3 {[%emt 0:01:55]} Bxe2 {[%emt 0:02:16]} 15. Nxe2 {[%emt 0:00:18]} Qc7 {[%emt 0:02:35]} 16. Bf4 {[%emt 0:02:55]} Qd7 {[%emt 0:00:54]} 17. Rad1 {[%emt 0:00:26]} Nh5 {[%emt 0:01:34]} 18. Be3 {[%emt 0:01:23]} Qc7 {[%emt 0:02:44]} 19. g4 {[%emt 0:05:09]} Nf6 $18 {[%emt 0:01:45]} 20. Bf4 {[%emt 0:00:27]} Qd7 {[%emt 0:00:59]} 21. c4 {[%emt 0:00:14]} Rfd8 {[%emt 0:07:42]} 22. Qe3 {[%emt 0:05:00]} Nc8 {[%emt 0:03:39]} 23. e5 {[%emt 0:01:04]} Ne8 {[%emt 0:00:20]} 24. d5 {[%emt 0:00:27]} c5 {[%emt 0:25:29]} 25. Qxc5 {[%emt 0:02:53]} Ra6 {[%emt 0:03:09]} 26. Nc3 {[%emt 0:05:37]} Nb6 {[%emt 0:06:12]} 27. Qe3 {[%emt 0:04:45]} Qc8 {[%emt 0:00:56]} 28. Ne4 {[%emt 0:04:20]} Nd7 {[%emt 0:00:41]} 29. Ng5 {[%emt 0:02:42]} Nc5 {[%emt 0:00:55]} 30. Ne4 {[%emt 0:07:10]} Nxe4 {[%emt 0:00:55]} 31. Bxe4 {[%emt 0:00:31]} Nc7 {[%emt 0:01:07]} 32. Qf3 {[%emt 0:02:44]} Rb6 {[%emt 0:03:44]} 33. c5 {[%emt 0:03:28]} Rb4 {[%emt 0:01:34]} 34. Bd2 {[%emt 0:00:46]} Rd4 {[%emt 0:00:29]} 35. Bxa5 {[%emt 0:03:05]} Bxe5 {[%emt 0:01:37]} 36. Qxf7+ {[%emt 0:01:26]} Kh8 {[%emt 0:00:01]} 37. Bg2 {[%emt 0:01:40]} Qd7 {[%emt 0:00:48]} 38. Bc3 {[%emt 0:00:43]} Rxd5 {[%emt 0:00:48]} 39. Bxe5+ {[%emt 0:00:16]} 1-0

[Event "Targo Mures Open 2019"]
[Site "Targo Mures"]
[Date "2019.10.19"]
[Round "4.3"]
[White "Filip, Lucian-Ioan"]
[Black "Banzea, Alexandru-Bogdan"]
[Result "1/2-1/2"]
[ECO "E10"]
[WhiteElo "2418"]
[BlackElo "2389"]
[Annotator "RC"]
[PlyCount "80"]
[EventDate "2019.03.02"]
[EventType "swiss"]
[EventCountry "ROU"]
[SourceTitle "playchess.com"]
[Source "ChessBase"]
[SourceQuality "1"]
[TimeControl "5400+30"]

1. d4 {[%emt 0:00:07]} Nf6 {[%emt 0:00:00]} 2. c4 {[%emt 0:00:03]} e6 {[%emt 0:00:02]} 3. Nf3 {[%emt 0:00:34]} d5 {[%emt 0:00:12]} 4. g3 {[%emt 0:00:13]} Bb4+ {[%emt 0:00:14]} 5. Bd2 {[%emt 0:00:03]} Bd6 {[%emt 0:00:11]} 6. Bg2 {[%emt 0:00:03]} c6 {[%emt 0:00:38]} 7. Qc2 {[%emt 0:02:35]} Nbd7 {[%emt 0:00:42]} 8. O-O {[%emt 0:00:12]} O-O {[%emt 0:00:21]} 9. Rd1 {[%emt 0:00:16]} Ne4 {[%emt 0:00:45]} 10. Nc3 {[%emt 0:00:44]} f5 {[%emt 0:01:30]} 11. Nxe4 {[%emt 0:06:08]} fxe4 {[%emt 0:02:04]} 12. Ng5 {[%emt 0:02:01]} Nf6 {[%emt 0:04:08]} 13. f3 {[%emt 0:01:43]} exf3 {[%emt 0:02:12]} 14. exf3 {[%emt 0:02:53]} h6 {[%emt 0:02:09]} 15. Nh3 {[%emt 0:00:06]} e5 {[%emt 0:01:36]} 16. dxe5 {[%emt 0:23:39]} Bxe5 {[%emt 0:02:02]} 17. Nf4 {[%emt 0:10:34]} Re8 {[%emt 0:14:36]} 18. cxd5 {[%emt 0:10:41]} Bxf4 {[%emt 0:06:50]} 19. Bxf4 {[%emt 0:00:27]} Nxd5 {[%emt 0:01:40]} 20. Bd2 {[%emt 0:13:38]} Qb6+ {[%emt 0:13:58]} 21. Kh1 {[%emt 0:00:25]} Ne3 {[%emt 0:13:20]} 22. Qg6 {[%emt 0:13:50]} Bf5 {[%emt 0:02:20]} 23. Bxe3 {[%emt 0:00:48]} Bxg6 {[%emt 0:00:29]} 24. Bxb6 {[%emt 0:00:06]} axb6 {[%emt 0:00:08]} 25. Bf1 {[%emt 0:06:14]} Bf7 {[%emt 0:00:39]} 26. Rd7 {[%emt 0:02:01]} Rxa2 {[%emt 0:02:55]} 27. Rxa2 {[%emt 0:00:07]} Bxa2 {[%emt 0:00:06]} 28. Rxb7 {[%emt 0:02:04]} b5 {[%emt 0:00:09]} 29. Kg2 {[%emt 0:01:36]} Bd5 {[%emt 0:06:59]} 30. Rd7 {[%emt 0:00:30]} Rf8 {[%emt 0:01:57]} 31. Be2 {[%emt 0:00:08]} Ra8 {[%emt 0:06:15]} 32. Bxb5 {[%emt 0:00:19]} Rb8 {[%emt 0:00:15]} 33. Be2 {[%emt 0:00:52]} Rxb2 {[%emt 0:00:17]} 34. Kf1 {[%emt 0:00:16]} Kf8 {[%emt 0:02:02]} 35. h4 {[%emt 0:00:15]} Rb8 {[%emt 0:01:43]} 36. Kf2 {[%emt 0:00:32]} Re8 {[%emt 0:00:11]} 37. Bd3 {[%emt 0:00:50]} Re7 {[%emt 0:00:13]} 38. Rxe7 {[%emt 0:00:54]} Kxe7 {[%emt 0:00:07]} 39. Ke3 {[%emt 0:00:09]} Kd6 {[%emt 0:01:54]} 40. f4 {[%emt 0:00:06]} Ke6 {[%emt 0:02:23]} 1/2-1/2

[Event "Targo Mures Open 2019"]
[Site "Targo Mures"]
[Date "2019.10.19"]
[Round "5.1"]
[White "Manolache, Marius"]
[Black "Jianu, Vlad-Cristian"]
[Result "1/2-1/2"]
[ECO "E06"]
[WhiteElo "2548"]
[BlackElo "2529"]
[Annotator "ChessBase"]
[PlyCount "76"]
[EventDate "2019.03.02"]
[EventType "swiss"]
[EventCountry "ROU"]
[SourceTitle "playchess.com"]
[Source "ChessBase"]
[SourceQuality "1"]
[TimeControl "5400+30"]

1. d4 {[%emt 0:00:00]} e6 {[%emt 0:00:00]} 2. Nf3 {[%emt 0:00:30]} Nf6 {[%emt 0:00:30]} 3. g3 {[%emt 0:00:00]} d5 {[%emt 0:02:07]} 4. c4 {[%emt 0:00:59]} Be7 {[%emt 0:03:33]} 5. Bg2 {[%emt 0:00:34]} O-O {[%emt 0:00:11]} 6. O-O {[%emt 0:03:37]} dxc4 {[%emt 0:00:14]} 7. Qc2 {[%emt 0:01:28]} a6 {[%emt 0:03:30]} 8. Bg5 {[%emt 0:06:14]} b5 {[%emt 0:09:02]} 9. Bxf6 {[%emt 0:00:38]} Bxf6 {[%emt 0:00:05]} 10. Rd1 {[%emt 0:00:15]} Bb7 {[%emt 0:11:01]} 11. Ng5 {[%emt 0:11:11]} Bxg5 {[%emt 0:00:04]} 12. Bxb7 {[%emt 0:00:06]} Ra7 {[%emt 0:00:04]} 13. Be4 {[%emt 0:00:11]} f5 {[%emt 0:08:37]} 14. Bg2 {[%emt 0:00:45]} c6 {[%emt 0:00:43]} 15. e3 {[%emt 0:02:02]} Rd7 {[%emt 0:07:22]} 16. Nd2 {[%emt 0:00:54]} Bf6 {[%emt 0:02:09]} 17. Nf3 {[%emt 0:01:15]} Qc7 {[%emt 0:09:18]} 18. b3 {[%emt 0:04:37]} c5 {[%emt 0:02:47]} 19. bxc4 {[%emt 0:01:02]} cxd4 {[%emt 0:00:04]} 20. Nxd4 {[%emt 0:01:46]} Qxc4 {[%emt 0:05:06]} 21. Qxc4 {[%emt 0:01:38]} bxc4 {[%emt 0:00:03]} 22. Rac1 {[%emt 0:02:48]} Rfd8 {[%emt 0:05:10]} 23. Re1 {[%emt 0:00:22]} Bxd4 {[%emt 0:01:28]} 24. exd4 {[%emt 0:00:05]} Kf7 {[%emt 0:00:15]} 25. Rxc4 {[%emt 0:02:20]} Rxd4 {[%emt 0:00:15]} 26. Rc7+ {[%emt 0:06:16]} R4d7 {[%emt 0:11:38]} 27. Rcc1 {[%emt 0:00:13]} Rd6 {[%emt 0:03:46]} 28. Rc7+ {[%emt 0:00:29]} Kf6 {[%emt 0:01:00]} 29. Ra7 {[%emt 0:08:06]} R8d7 {[%emt 0:02:01]} 30. Ra8 {[%emt 0:00:33]} Rb6 {[%emt 0:00:08]} 31. Bf1 {[%emt 0:01:44]} Rc7 {[%emt 0:07:56]} 32. a4 {[%emt 0:09:35]} Rb4 {[%emt 0:01:46]} 33. a5 {[%emt 0:00:39]} Rc5 {[%emt 0:02:04]} 34. Bxa6 {[%emt 0:05:28]} Rxa5 {[%emt 0:00:43]} 35. Rxe6+ {[%emt 0:00:30]} Kxe6 {[%emt 0:00:29]} 36. Bc8+ {[%emt 0:00:05]} Kf6 {[%emt 0:00:01]} 37. Rxa5 {[%emt 0:00:05]} g6 {[%emt 0:00:01]} 38. Rd5 {[%emt 0:03:40]} Rb6 {[%emt 0:00:55]} 1/2-1/2

[Event "Targo Mures Open 2019"]
[Site "Targo Mures"]
[Date "2019.10.19"]
[Round "5.2"]
[White "Banzea, Alexandru-Bogdan"]
[Black "Istratescu, Andrei"]
[Result "0-1"]
[ECO "B51"]
[WhiteElo "2389"]
[BlackElo "2564"]
[Annotator "ChessBase"]
[PlyCount "62"]
[EventDate "2019.03.02"]
[EventType "swiss"]
[EventCountry "ROU"]
[SourceTitle "playchess.com"]
[Source "ChessBase"]
[SourceQuality "1"]
[TimeControl "5400+30"]

1. e4 {[%emt 0:00:00]} c5 {[%emt 0:02:35]} 2. Nf3 {[%emt 0:00:00]} d6 {[%emt 0:00:07]} 3. Bb5+ {[%emt 0:01:05]} Nd7 {[%emt 0:01:00]} 4. c3 {[%emt 0:01:15]} Ngf6 {[%emt 0:01:14]} 5. Bd3 {[%emt 0:00:38]} b6 {[%emt 0:14:46]} 6. Bc2 {[%emt 0:02:31]} Bb7 {[%emt 0:04:21]} 7. Qe2 {[%emt 0:00:34]} Rc8 {[%emt 0:01:59]} 8. O-O {[%emt 0:12:16]} Qc7 {[%emt 0:00:21]} 9. d4 {[%emt 0:12:57]} cxd4 {[%emt 0:01:22]} 10. Nxd4 {[%emt 0:00:16]} a6 {[%emt 0:03:00]} 11. Nd2 {[%emt 0:05:11]} g6 {[%emt 0:02:32]} 12. f4 {[%emt 0:09:41]} Bg7 {[%emt 0:03:28]} 13. N2f3 {[%emt 0:01:58]} e5 {[%emt 0:00:29]} 14. Nb3 {[%emt 0:01:29]} O-O {[%emt 0:01:10]} 15. f5 {[%emt 0:07:35]} b5 {[%emt 0:05:41]} 16. fxg6 {[%emt 0:00:39]} hxg6 {[%emt 0:00:05]} 17. Ng5 {[%emt 0:04:02]} b4 {[%emt 0:00:52]} 18. Bd3 {[%emt 0:01:51]} bxc3 {[%emt 0:02:32]} 19. bxc3 {[%emt 0:00:37]} a5 {[%emt 0:01:00]} 20. Be3 {[%emt 0:04:11]} d5 {[%emt 0:16:25]} 21. exd5 {[%emt 0:06:27]} Nxd5 {[%emt 0:00:25]} 22. Qg4 {[%emt 0:05:11]} N7f6 {[%emt 0:03:00]} 23. Qh4 {[%emt 0:02:05]} Qxc3 {[%emt 0:01:29]} 24. Rad1 {[%emt 0:01:49]} a4 {[%emt 0:04:48]} 25. Nc1 {[%emt 0:06:43]} Nh5 {[%emt 0:06:42]} 26. Ne2 {[%emt 0:07:59]} Qb4 {[%emt 0:04:36]} 27. Qh3 {[%emt 0:00:05]} Nxe3 {[%emt 0:00:39]} 28. Bxg6 {[%emt 0:03:25]} Nxd1 {[%emt 0:07:32]} 29. Bh7+ {[%emt 0:01:12]} Kh8 {[%emt 0:00:00]} 30. Qxh5 {[%emt 0:00:18]} Qb6+ {[%emt 0:00:05]} 31. Kh1 {[%emt 0:00:10]} Qh6 {[%emt 0:00:29]} 0-1

[Event "Targo Mures Open 2019"]
[Site "Targo Mures"]
[Date "2019.10.19"]
[Round "5.3"]
[White "Anton, Teodor"]
[Black "Stegariu, Alexandru"]
[Result "1-0"]
[ECO "A04"]
[WhiteElo "2445"]
[BlackElo "2146"]
[Annotator "NA"]
[PlyCount "83"]
[EventDate "2019.03.02"]
[EventType "swiss"]
[EventCountry "ROU"]
[SourceTitle "playchess.com"]
[Source "ChessBase"]
[SourceQuality "1"]
[TimeControl "5400+30"]

1. Nf3 {[%emt 0:00:49]} c5 {[%emt 0:01:25]} 2. c4 {[%emt 0:00:17]} Nc6 {[%emt 0:00:05]} 3. g3 {[%emt 0:01:19]} e5 {[%emt 0:00:32]} 4. Nc3 {[%emt 0:00:20]} g6 {[%emt 0:00:28]} 5. Bg2 {[%emt 0:00:10]} Bg7 {[%emt 0:00:09]} 6. O-O {[%emt 0:00:39]} Nge7 {[%emt 0:00:33]} 7. Ne1 {[%emt 0:00:51]} O-O {[%emt 0:02:50]} 8. Nc2 {[%emt 0:00:04]} d6 {[%emt 0:00:06]} 9. Ne3 {[%emt 0:00:05]} Be6 {[%emt 0:00:10]} 10. Ned5 {[%emt 0:00:22]} Qd7 {[%emt 0:01:29]} 11. Re1 {[%emt 0:00:14]} Bh3 {[%emt 0:02:18]} 12. Bh1 {[%emt 0:00:08]} f5 {[%emt 0:03:00]} 13. d3 {[%emt 0:00:12]} f4 {[%emt 0:01:24]} 14. a3 {[%emt 0:00:56]} Rab8 {[%emt 0:09:54]} 15. Rb1 {[%emt 0:00:27]} Nxd5 {[%emt 0:07:56]} 16. Bxd5+ {[%emt 0:05:43]} Kh8 {[%emt 0:06:36]} 17. Bg2 {[%emt 0:01:02]} Nd4 {[%emt 0:01:35]} 18. f3 {[%emt 0:18:24]} Be6 {[%emt 0:05:13]} 19. e3 {[%emt 0:01:26]} fxe3 20. Bxe3 {[%emt 0:00:06]} a6 {[%emt 0:07:36]} 21. b4 {[%emt 0:02:35]} b5 {[%emt 0:01:38]} 22. cxb5 {[%emt 0:02:51]} cxb4 {[%emt 0:03:05]} 23. axb4 {[%emt 0:03:29]} Nxb5 {[%emt 0:01:14]} 24. Ne4 {[%emt 0:00:20]} Rfc8 {[%emt 0:02:24]} 25. Qd2 {[%emt 0:01:25]} Bd5 {[%emt 0:04:43]} 26. Ra1 {[%emt 0:01:39]} Rc6 {[%emt 0:01:48]} 27. Rec1 {[%emt 0:05:48]} Rbc8 {[%emt 0:01:16]} 28. Rxc6 {[%emt 0:00:23]} Rxc6 {[%emt 0:00:23]} 29. Rc1 {[%emt 0:00:30]} Rxc1+ {[%emt 0:05:15]} 30. Qxc1 {[%emt 0:00:10]} Qc6 {[%emt 0:00:04]} 31. Bh3 {[%emt 0:03:02]} Qxc1+ {[%emt 0:08:19]} 32. Bxc1 {[%emt 0:00:12]} Bxe4 {[%emt 0:01:02]} 33. dxe4 {[%emt 0:00:57]} d5 {[%emt 0:00:03]} 34. exd5 {[%emt 0:03:27]} Nc3 {[%emt 0:00:07]} 35. Bd2 {[%emt 0:00:36]} Nxd5 {[%emt 0:00:20]} 36. Be6 {[%emt 0:00:11]} Nc7 {[%emt 0:01:42]} 37. Bc4 {[%emt 0:00:31]} Bf6 {[%emt 0:01:32]} 38. Kf2 {[%emt 0:03:15]} Kg7 {[%emt 0:00:19]} 39. Ke2 {[%emt 0:01:29]} Nb5 {[%emt 0:06:45]} 40. Kd3 {[%emt 0:01:36]} Be7 {[%emt 0:02:01]} 41. Bxb5 {[%emt 0:01:17]} axb5 {[%emt 0:00:12]} 42. Ke4 {[%emt 0:00:05]} 1-0

[Event "Targo Mures Open 2019"]
[Site "Targo Mures"]
[Date "2019.10.19"]
[Round "5.4"]
[White "Manea, Alexandru"]
[Black "Filip, Lucian-Ioan"]
[Result "1/2-1/2"]
[ECO "B30"]
[WhiteElo "2305"]
[BlackElo "2418"]
[Annotator "NA"]
[PlyCount "33"]
[EventDate "2019.03.02"]
[EventType "swiss"]
[EventCountry "ROU"]
[SourceTitle "playchess.com"]
[Source "ChessBase"]
[SourceQuality "1"]
[TimeControl "5400+30"]

1. e4 {[%emt 0:08:11]} c5 {[%emt 0:06:29]} 2. Nf3 {[%emt 0:00:10]} Nc6 {[%emt 0:00:03]} 3. Nc3 {[%emt 0:00:08]} e5 {[%emt 0:02:16]} 4. Bc4 {[%emt 0:00:08]} Be7 {[%emt 0:00:09]} 5. d3 {[%emt 0:00:05]} d6 {[%emt 0:00:52]} 6. Nd2 {[%emt 0:00:06]} Nf6 {[%emt 0:00:02]} 7. Nf1 {[%emt 0:00:06]} Bg4 {[%emt 0:00:10]} 8. f3 {[%emt 0:00:08]} Be6 {[%emt 0:00:10]} 9. Ne3 O-O 10. Bd2 Nd7 11. Ncd5 Nb6 12. Nxe7+ Nxe7 13. O-O d5 14. exd5 Nexd5 15. Nxd5 Bxd5 16. Bxd5 Nxd5 17. Re1 1/2-1/2

[Event "Targo Mures Open 2019"]
[Site "Targo Mures"]
[Date "2019.10.19"]
[Round "5.5"]
[White "Soltanici, Ruslan"]
[Black "Ognean, Mihnea-Ionut"]
[Result "0-1"]
[ECO "B31"]
[WhiteElo "2416"]
[BlackElo "2285"]
[Annotator "NA"]
[PlyCount "80"]
[EventDate "2019.03.02"]
[EventType "swiss"]
[EventCountry "ROU"]
[SourceTitle "playchess.com"]
[Source "ChessBase"]
[SourceQuality "1"]
[TimeControl "5400+30"]

1. e4 {[%emt 0:00:00]} c5 {[%emt 0:00:00]} 2. Nf3 {[%emt 0:00:00]} Nc6 {[%emt 0:00:00]} 3. Bb5 {[%emt 0:00:22]} g6 {[%emt 0:00:02]} 4. O-O {[%emt 0:00:48]} Bg7 {[%emt 0:00:11]} 5. Re1 {[%emt 0:00:36]} e5 {[%emt 0:01:59]} 6. a3 {[%emt 0:01:43]} Nge7 {[%emt 0:00:33]} 7. b4 {[%emt 0:00:36]} d6 {[%emt 0:00:08]} 8. c3 {[%emt 0:02:39]} O-O {[%emt 0:00:43]} 9. d3 {[%emt 0:00:25]} h6 {[%emt 0:04:22]} 10. Nbd2 {[%emt 0:12:52]} b6 {[%emt 0:08:53]} 11. Bb2 {[%emt 0:10:13]} f5 {[%emt 0:07:18]} 12. Nf1 {[%emt 0:38:48]} Kh7 {[%emt 0:06:30]} 13. h3 {[%emt 0:01:45]} a6 {[%emt 0:07:14]} 14. Ba4 {[%emt 0:09:30]} Ra7 {[%emt 0:00:22]} 15. Ne3 {[%emt 0:02:02]} Rc7 {[%emt 0:09:59]} 16. Bb3 {[%emt 0:06:08]} g5 {[%emt 0:13:27]} 17. exf5 {[%emt 0:01:00]} Nxf5 {[%emt 0:04:29]} 18. Nxf5 {[%emt 0:04:51]} Bxf5 {[%emt 0:00:16]} 19. Bd5 {[%emt 0:00:05]} Ne7 {[%emt 0:02:20]} 20. Be4 {[%emt 0:00:10]} Ng6 {[%emt 0:07:40]} 21. bxc5 {[%emt 0:02:39]} dxc5 {[%emt 0:06:34]} 22. Qa4 {[%emt 0:02:04]} c4 {[%emt 0:00:46]} 23. Rad1 {[%emt 0:00:33]} Bxe4 {[%emt 0:00:22]} 24. dxe4 {[%emt 0:00:24]} Qc8 {[%emt 0:00:08]} 25. Nh2 {[%emt 0:00:53]} b5 {[%emt 0:00:28]} 26. Qc2 {[%emt 0:00:32]} Nf4 {[%emt 0:00:12]} 27. a4 {[%emt 0:00:51]} Rcf7 {[%emt 0:00:40]} 28. Ba3 {[%emt 0:00:19]} Rd8 {[%emt 0:03:02]} 29. Ng4 {[%emt 0:00:45]} Rd3 {[%emt 0:02:53]} 30. axb5 {[%emt 0:00:29]} axb5 {[%emt 0:00:10]} 31. Ne3 {[%emt 0:00:44]} Qa8 {[%emt 0:00:19]} 32. Bc1 {[%emt 0:00:42]} Qxe4 {[%emt 0:00:08]} 33. f3 {[%emt 0:00:13]} Qg6 {[%emt 0:00:48]} 34. Ng4 {[%emt 0:00:39]} Rfd7 {[%emt 0:00:53]} 35. Rxd3 {[%emt 0:00:38]} cxd3 {[%emt 0:00:05]} 36. Qd2 {[%emt 0:00:28]} Ne2+ {[%emt 0:02:34]} 37. Kf2 {[%emt 0:00:29]} Rf7 {[%emt 0:00:53]} 38. Qe3 {[%emt 0:00:09]} e4 {[%emt 0:00:16]} 39. Bd2 {[%emt 0:00:35]} h5 {[%emt 0:00:29]} 40. Nh2 {[%emt 0:00:34]} Be5 {[%emt 0:00:13]} 0-1

[Event "Targo Mures Open 2019"]
[Site "Targo Mures"]
[Date "2019.10.19"]
[Round "5.6"]
[White "Vladescu, Alin-Cristian"]
[Black "Vasiesiu, Dan"]
[Result "1/2-1/2"]
[ECO "A48"]
[WhiteElo "2004"]
[BlackElo "2392"]
[Annotator "NA"]
[PlyCount "95"]
[EventDate "2019.03.02"]
[EventType "swiss"]
[EventCountry "ROU"]
[SourceTitle "playchess.com"]
[Source "ChessBase"]
[SourceQuality "1"]
[TimeControl "5400+30"]

1. d4 {[%emt 0:00:00]} Nf6 {[%emt 0:00:00]} 2. Nf3 {[%emt 0:00:00]} g6 {[%emt 0:00:00]} 3. Bf4 {[%emt 0:00:00]} Bg7 {[%emt 0:00:21]} 4. e3 {[%emt 0:00:07]} d6 {[%emt 0:01:09]} 5. h3 {[%emt 0:05:22]} O-O {[%emt 0:00:32]} 6. Nbd2 {[%emt 0:00:21]} b6 {[%emt 0:00:38]} 7. c3 {[%emt 0:00:56]} Bb7 {[%emt 0:00:23]} 8. Bc4 {[%emt 0:00:31]} Nbd7 {[%emt 0:01:52]} 9. O-O {[%emt 0:00:37]} e6 {[%emt 0:01:17]} 10. a4 {[%emt 0:01:16]} a5 {[%emt 0:03:16]} 11. Re1 {[%emt 0:03:28]} Qe7 {[%emt 0:05:22]} 12. e4 {[%emt 0:10:19]} e5 {[%emt 0:01:23]} 13. dxe5 {[%emt 0:07:40]} dxe5 {[%emt 0:04:41]} 14. Bg5 {[%emt 0:04:31]} Rad8 {[%emt 0:01:16]} 15. Qc2 {[%emt 0:01:48]} h6 {[%emt 0:29:48]} 16. Bxf6 {[%emt 0:02:03]} Qxf6 {[%emt 0:01:41]} 17. b4 {[%emt 0:13:55]} Ra8 {[%emt 0:09:00]} 18. g3 {[%emt 0:17:47]} Rfd8 {[%emt 0:06:43]} 19. Kg2 {[%emt 0:05:19]} Bf8 {[%emt 0:02:04]} 20. Qb3 {[%emt 0:04:48]} Bd6 {[%emt 0:02:05]} 21. Bd3 {[%emt 0:03:29]} Bf8 {[%emt 0:02:48]} 22. Bc2 {[%emt 0:00:55]} axb4 {[%emt 0:05:22]} 23. cxb4 {[%emt 0:00:18]} Nb8 {[%emt 0:00:15]} 24. a5 {[%emt 0:04:46]} Nc6 {[%emt 0:01:19]} 25. axb6 {[%emt 0:07:29]} cxb6 {[%emt 0:00:21]} 26. Rxa8 {[%emt 0:00:40]} Bxa8 {[%emt 0:01:07]} 27. b5 {[%emt 0:02:01]} Nd4 {[%emt 0:05:33]} 28. Nxd4 {[%emt 0:00:33]} exd4 {[%emt 0:03:04]} 29. Bd1 {[%emt 0:02:04]} Qe7 {[%emt 0:03:08]} 30. Bf3 {[%emt 0:00:41]} Rc8 {[%emt 0:01:21]} 31. Qd3 {[%emt 0:01:01]} Qb4 {[%emt 0:04:16]} 32. Rb1 {[%emt 0:00:39]} Rc3 {[%emt 0:01:01]} 33. Rxb4 {[%emt 0:00:24]} Rxd3 {[%emt 0:00:02]} 34. Rb2 {[%emt 0:00:21]} Bb7 {[%emt 0:00:40]} 35. Nc4 {[%emt 0:00:45]} Bc5 {[%emt 0:00:22]} 36. Ne5 {[%emt 0:00:22]} Ra3 {[%emt 0:00:40]} 37. Nc6 {[%emt 0:00:26]} Bc8 {[%emt 0:00:41]} 38. Rd2 {[%emt 0:00:40]} Ra4 {[%emt 0:00:43]} 39. g4 {[%emt 0:00:30]} Be6 {[%emt 0:00:13]} 40. Be2 {[%emt 0:00:30]} g5 {[%emt 0:00:26]} 41. Nd8 {[%emt 0:00:29]} Kg7 {[%emt 0:01:08]} 42. Nxe6+ {[%emt 0:00:12]} fxe6 {[%emt 0:00:01]} 43. e5 {[%emt 0:00:39]} Kf7 {[%emt 0:01:07]} 44. Bd3 {[%emt 0:00:12]} Ra3 {[%emt 0:00:33]} 45. Kf3 {[%emt 0:00:45]} Ke7 {[%emt 0:00:22]} 46. Rd1 {[%emt 0:00:32]} Ra2 {[%emt 0:00:35]} 47. Rf1 {[%emt 0:00:44]} Ra8 48. Ke4 1/2-1/2

[Event "Targo Mures Open 2019"]
[Site "Targo Mures"]
[Date "2019.10.19"]
[Round "5.7"]
[White "Maier, Marius-Alin"]
[Black "Petre, Nad-Titus"]
[Result "0-1"]
[ECO "B41"]
[WhiteElo "1939"]
[BlackElo "2306"]
[Annotator "NA"]
[PlyCount "58"]
[EventDate "2019.03.02"]
[EventType "swiss"]
[EventCountry "ROU"]
[SourceTitle "playchess.com"]
[Source "ChessBase"]
[SourceQuality "1"]
[TimeControl "5400+30"]

1. e4 {[%emt 0:04:10]} c5 {[%emt 0:01:23]} 2. Nf3 {[%emt 0:00:06]} e6 {[%emt 0:00:17]} 3. d4 {[%emt 0:00:04]} cxd4 {[%emt 0:00:14]} 4. Nxd4 {[%emt 0:00:07]} a6 {[%emt 0:00:06]} 5. g3 {[%emt 0:00:50]} Nc6 {[%emt 0:07:14]} 6. Bg2 {[%emt 0:02:36]} Nf6 {[%emt 0:02:19]} 7. O-O {[%emt 0:00:43]} Qc7 {[%emt 0:00:38]} 8. Re1 {[%emt 0:07:33]} d6 {[%emt 0:12:19]} 9. Nc3 {[%emt 0:03:25]} Be7 {[%emt 0:00:27]} 10. Nxc6 {[%emt 0:07:03]} bxc6 {[%emt 0:00:07]} 11. e5 {[%emt 0:03:15]} dxe5 {[%emt 0:01:05]} 12. Rxe5 {[%emt 0:01:25]} O-O {[%emt 0:01:17]} 13. Qe1 {[%emt 0:05:14]} Bb7 {[%emt 0:06:24]} 14. Na4 {[%emt 0:06:40]} Nd7 {[%emt 0:17:41]} 15. Rh5 {[%emt 0:10:19]} c5 {[%emt 0:10:05]} 16. Bf4 {[%emt 0:11:29]} Qc8 {[%emt 0:00:09]} 17. Bxb7 {[%emt 0:02:06]} Qxb7 {[%emt 0:00:17]} 18. Rd1 {[%emt 0:02:07]} g6 {[%emt 0:10:32]} 19. Rh3 {[%emt 0:04:44]} Rfd8 {[%emt 0:05:17]} 20. b3 {[%emt 0:12:28]} Nf6 {[%emt 0:01:12]} 21. g4 {[%emt 0:04:08]} Nxg4 {[%emt 0:05:31]} 22. Rhd3 {[%emt 0:01:07]} Rxd3 {[%emt 0:02:54]} 23. Rxd3 {[%emt 0:00:27]} c4 {[%emt 0:01:33]} 24. Rd2 {[%emt 0:03:52]} Qf3 {[%emt 0:02:08]} 25. Bg3 {[%emt 0:00:49]} Bg5 {[%emt 0:03:39]} 26. Rd4 {[%emt 0:02:28]} Ne3 {[%emt 0:02:02]} 27. fxe3 {[%emt 0:01:46]} Bxe3+ {[%emt 0:00:11]} 28. Bf2 {[%emt 0:00:40]} Bxd4 {[%emt 0:00:06]} 29. Nb6 {[%emt 0:01:29]} Rd8 {[%emt 0:01:03]} 0-1